[Event "*** Titled Tuesday Blitz"]
[Site "Chess.com"]
[Date "2020.04.21"]
[Round "2"]
[White "BabyBoss31"]
[Black "NastaJ"]
[Result "1-0"]
[WhiteElo "2368"]
[BlackElo "1818"]
[TimeControl "180+1"]
[EndTime "10:19:03 PDT"]
[Termination "BabyBoss31 won by resignation"]

1. d4 {[%clk 0:03:00.9]} 1... Nf6 {[%clk 0:02:59.4]} 2. c4 {[%clk 0:03:01]} 2...
e6 {[%clk 0:02:59.2]} 3. Nf3 {[%clk 0:03:00.1]} 3... b6 {[%clk 0:02:58.6]} 4. a3
{[%clk 0:02:59.4]} 4... Bb7 {[%clk 0:02:57.4]} 5. Nc3 {[%clk 0:02:58.6]} 5...
Be7 {[%clk 0:02:57.2]} 6. d5 {[%clk 0:02:56.7]} 6... exd5 {[%clk 0:02:55.4]} 7.
cxd5 {[%clk 0:02:55.4]} 7... d6 {[%clk 0:02:46.7]} 8. e4 {[%clk 0:02:52.9]} 8...
Nbd7 {[%clk 0:02:46.2]} 9. Nd4 {[%clk 0:02:47.2]} 9... O-O {[%clk 0:02:40.6]}
10. f3 {[%clk 0:02:44.7]} 10... Ne5 {[%clk 0:02:40]} 11. Be2 {[%clk 0:02:41.1]}
11... h6 {[%clk 0:02:36.3]} 12. O-O {[%clk 0:02:39]} 12... Nh5 {[%clk
0:02:26.4]} 13. f4 {[%clk 0:02:35.7]} 13... Nxf4 {[%clk 0:02:21.9]} 14. Bxf4
{[%clk 0:02:36.2]} 14... Ng6 {[%clk 0:02:21.8]} 15. Bg3 {[%clk 0:02:35.6]} 15...
Bf6 {[%clk 0:02:21.2]} 16. Bh5 {[%clk 0:02:33.7]} 16... Ne5 {[%clk 0:02:20.1]}
17. Be2 {[%clk 0:02:31.4]} 17... Ng6 {[%clk 0:02:17.9]} 18. Nf5 {[%clk
0:02:30.4]} 18... Ne5 {[%clk 0:02:07.8]} 19. Qe1 {[%clk 0:02:24.4]} 19... Bg5
{[%clk 0:02:00]} 20. Bf4 {[%clk 0:02:21.8]} 20... Bxf4 {[%clk 0:01:57.7]} 21.
Rxf4 {[%clk 0:02:21.4]} 21... Qg5 {[%clk 0:01:54.6]} 22. Rf1 {[%clk 0:02:13.2]}
22... g6 {[%clk 0:01:52.3]} 23. Ng3 {[%clk 0:02:13.3]} 23... h5 {[%clk
0:01:47.6]} 24. Qc1 {[%clk 0:02:05.2]} 24... Qxc1 {[%clk 0:01:32.6]} 25. Raxc1
{[%clk 0:02:04.7]} 25... h4 {[%clk 0:01:30.5]} 26. Nh1 {[%clk 0:02:04.4]} 26...
Rae8 {[%clk 0:01:27.7]} 27. Nf2 {[%clk 0:02:04.5]} 27... Nd7 {[%clk 0:01:26.1]}
28. Bg4 {[%clk 0:02:02.9]} 28... Nc5 {[%clk 0:01:25.9]} 29. Rfe1 {[%clk
0:02:02.3]} 29... Ba6 {[%clk 0:01:23.4]} 30. b4 {[%clk 0:01:50.9]} 30... Nb3
{[%clk 0:01:22.7]} 31. Rb1 {[%clk 0:01:44]} 31... Bc4 {[%clk 0:01:21.9]} 32. Be2
{[%clk 0:01:38.9]} 32... Nd2 {[%clk 0:01:18.4]} 33. Rb2 {[%clk 0:01:31.6]} 33...
Bxe2 {[%clk 0:01:18.2]} 34. Rxe2 {[%clk 0:01:29.4]} 34... Nc4 {[%clk 0:01:18.8]}
35. Ra2 {[%clk 0:01:29]} 35... Re7 {[%clk 0:01:11.6]} 36. Nb5 {[%clk 0:01:26.2]}
36... a6 {[%clk 0:01:11.4]} 37. Nd4 {[%clk 0:01:26.1]} 37... Kg7 {[%clk
0:01:03.1]} 38. a4 {[%clk 0:01:23.4]} 38... Ne5 {[%clk 0:00:55.9]} 39. Rac2
{[%clk 0:01:22.7]} 39... Rfe8 {[%clk 0:00:49.6]} 40. Rc3 {[%clk 0:01:21.8]}
40... Kf6 {[%clk 0:00:41]} 41. Rec2 {[%clk 0:01:17.1]} 41... Rc8 {[%clk
0:00:39.5]} 42. Kf1 {[%clk 0:01:07.6]} 42... Rd7 {[%clk 0:00:34.5]} 43. Ke2
{[%clk 0:01:02]} 43... Ke7 {[%clk 0:00:33.5]} 44. Ke3 {[%clk 0:00:58.5]} 44...
Kf6 {[%clk 0:00:32.2]} 45. Nd1 {[%clk 0:00:50.2]} 45... Ng4+ {[%clk 0:00:24.9]}
46. Ke2 {[%clk 0:00:42.9]} 46... Nxh2 {[%clk 0:00:21.3]} 47. Rh3 {[%clk
0:00:42.4]} 47... Ng4 {[%clk 0:00:20.9]} 48. Rxh4 {[%clk 0:00:42.3]} 48... Ne5
{[%clk 0:00:18.3]} 49. Ne3 {[%clk 0:00:41.8]} 49... Kg7 {[%clk 0:00:16.8]} 50.
Nc6 {[%clk 0:00:38.5]} 50... Nxc6 {[%clk 0:00:13]} 51. Rxc6 {[%clk 0:00:39.4]}
51... Re7 {[%clk 0:00:12.3]} 52. Nc4 {[%clk 0:00:38.4]} 52... Rce8 {[%clk
0:00:12.2]} 53. Kd3 {[%clk 0:00:37.4]} 53... g5 {[%clk 0:00:07.3]} 54. Rg4
{[%clk 0:00:36.4]} 54... Kg6 {[%clk 0:00:07.2]} 55. Nd2 {[%clk 0:00:35.5]} 55...
f5 {[%clk 0:00:06.6]} 56. exf5+ {[%clk 0:00:32.7]} 56... Kxf5 {[%clk 0:00:06.7]}
57. Rg3 {[%clk 0:00:33.2]} 57... Re1 {[%clk 0:00:06.4]} 58. Rxc7 {[%clk
0:00:30.1]} 58... R1e5 {[%clk 0:00:05.7]} 59. Nf3 {[%clk 0:00:22.2]} 59... Rxd5+
{[%clk 0:00:05.2]} 60. Kc4 {[%clk 0:00:22.4]} 60... Rd1 {[%clk 0:00:05.2]} 61.
Rxg5+ {[%clk 0:00:22.4]} 61... Kf6 {[%clk 0:00:04.8]} 62. Kb3 {[%clk 0:00:20.9]}
62... Rc1 {[%clk 0:00:05.7]} 63. Rxc1 {[%clk 0:00:20.3]} 1-0

[Event "*** Titled Tuesday Blitz"]
[Site "Chess.com"]
[Date "2020.04.21"]
[Round "2"]
[White "abhijeetgupta1016"]
[Black "Budisavljevic"]
[Result "1-0"]
[WhiteElo "2917"]
[BlackElo "2465"]
[TimeControl "180+1"]
[EndTime "10:19:04 PDT"]
[Termination "abhijeetgupta1016 won on time"]

1. d4 {[%clk 0:03:00.9]} 1... Nf6 {[%clk 0:02:58.4]} 2. c4 {[%clk 0:03:00.9]}
2... a6 {[%clk 0:02:58.2]} 3. Nf3 {[%clk 0:02:58.4]} 3... e6 {[%clk 0:02:58]} 4.
Nc3 {[%clk 0:02:56.9]} 4... c5 {[%clk 0:02:57.4]} 5. d5 {[%clk 0:02:54.4]} 5...
exd5 {[%clk 0:02:57.7]} 6. cxd5 {[%clk 0:02:55.3]} 6... d6 {[%clk 0:02:57.9]} 7.
h3 {[%clk 0:02:53.3]} 7... b5 {[%clk 0:02:49.6]} 8. a3 {[%clk 0:02:51.5]} 8...
g6 {[%clk 0:02:49.3]} 9. e4 {[%clk 0:02:51.7]} 9... Bg7 {[%clk 0:02:48.9]} 10.
Bd3 {[%clk 0:02:52.3]} 10... O-O {[%clk 0:02:48.8]} 11. O-O {[%clk 0:02:52.1]}
11... Re8 {[%clk 0:02:45.1]} 12. Bg5 {[%clk 0:02:51]} 12... Qb6 {[%clk
0:02:43.1]} 13. Re1 {[%clk 0:02:49.8]} 13... Ra7 {[%clk 0:02:41.6]} 14. Qd2
{[%clk 0:02:50]} 14... Rae7 {[%clk 0:02:39.7]} 15. Qf4 {[%clk 0:02:46.7]} 15...
Nh5 {[%clk 0:02:16.2]} 16. Qh4 {[%clk 0:02:44.1]} 16... f6 {[%clk 0:02:11.7]}
17. Bd2 {[%clk 0:02:43]} 17... Bh8 {[%clk 0:01:25.5]} 18. g4 {[%clk 0:02:31.6]}
18... Ng7 {[%clk 0:01:25.5]} 19. b4 {[%clk 0:02:30.4]} 19... Nd7 {[%clk
0:01:07.5]} 20. Kg2 {[%clk 0:02:26.3]} 20... Ne5 {[%clk 0:01:01]} 21. Nxe5
{[%clk 0:02:26.3]} 21... fxe5 {[%clk 0:01:01.9]} 22. Be3 {[%clk 0:02:25.9]}
22... Qc7 {[%clk 0:00:47.8]} 23. bxc5 {[%clk 0:02:20.8]} 23... dxc5 {[%clk
0:00:48.7]} 24. Rad1 {[%clk 0:02:19.7]} 24... Qd6 {[%clk 0:00:45.2]} 25. a4
{[%clk 0:02:17.9]} 25... c4 {[%clk 0:00:38.6]} 26. Bf1 {[%clk 0:01:56.9]} 26...
b4 {[%clk 0:00:34.4]} 27. Na2 {[%clk 0:01:56.9]} 27... c3 {[%clk 0:00:31.3]} 28.
Nc1 {[%clk 0:01:57.4]} 28... Rc7 {[%clk 0:00:21.1]} 29. Nb3 {[%clk 0:01:56.4]}
29... Rf8 {[%clk 0:00:20.8]} 30. a5 {[%clk 0:01:56]} 30... Ne8 {[%clk
0:00:20.1]} 31. Bb6 {[%clk 0:01:55.5]} 31... Bf6 {[%clk 0:00:19.8]} 32. Qg3
{[%clk 0:01:53.2]} 32... Bg5 {[%clk 0:00:19.7]} 33. Qd3 {[%clk 0:01:47]} 33...
c2 {[%clk 0:00:12.2]} 34. Rc1 {[%clk 0:01:31.9]} 34... Rc3 {[%clk 0:00:12.2]}
35. Bc5 {[%clk 0:01:19.8]} 35... Qf6 {[%clk 0:00:06]} 36. Qxc3 {[%clk
0:01:13.2]} 36... bxc3 {[%clk 0:00:05.5]} 37. Rxc2 {[%clk 0:01:14.1]} 37... Rf7
{[%clk 0:00:04.5]} 38. Rxc3 {[%clk 0:01:13.2]} 38... Bd7 {[%clk 0:00:04.6]} 39.
Bb6 {[%clk 0:01:03.4]} 39... Bh4 {[%clk 0:00:04.5]} 40. Re2 {[%clk 0:00:57.6]}
40... h5 {[%clk 0:00:04.7]} 41. Nc5 {[%clk 0:00:38.3]} 41... hxg4 {[%clk
0:00:03.6]} 42. Nxd7 {[%clk 0:00:38.5]} 42... Rxd7 {[%clk 0:00:03.2]} 43. hxg4
{[%clk 0:00:38.1]} 43... Rf7 {[%clk 0:00:03.4]} 44. Rec2 {[%clk 0:00:28.3]}
44... Rf8 {[%clk 0:00:03.3]} 45. Bc5 {[%clk 0:00:25.8]} 45... Nd6 {[%clk
0:00:03.3]} 46. Rh3 {[%clk 0:00:25.4]} 46... Nxe4 {[%clk 0:00:03.1]} 47. Be3
{[%clk 0:00:23.5]} 47... Nxf2 {[%clk 0:00:02.5]} 48. Be2 {[%clk 0:00:21.2]}
48... Nxg4 {[%clk 0:00:02.1]} 49. Bg1 {[%clk 0:00:21.1]} 49... Nh6 {[%clk
0:00:01.4]} 50. Rc4 {[%clk 0:00:20.6]} 50... Nf5 {[%clk 0:00:02.3]} 51. Rg4
{[%clk 0:00:20.2]} 51... e4 {[%clk 0:00:02.7]} 52. Rxe4 {[%clk 0:00:19.6]} 52...
Qg5+ {[%clk 0:00:02.6]} 53. Rg4 {[%clk 0:00:19.2]} 53... Qf6 {[%clk 0:00:03.5]}
54. Rf3 {[%clk 0:00:18.4]} 54... Re8 {[%clk 0:00:04.4]} 55. Bd3 {[%clk
0:00:18.2]} 55... Qd6 {[%clk 0:00:04.4]} 56. Bxf5 {[%clk 0:00:17.7]} 56... Qxd5
{[%clk 0:00:03.7]} 57. Rxg6+ {[%clk 0:00:17.5]} 57... Kh8 {[%clk 0:00:03.2]} 58.
Rh6+ {[%clk 0:00:17.8]} 58... Kg7 {[%clk 0:00:03.1]} 59. Rxh4 {[%clk 0:00:18.3]}
59... Re2+ {[%clk 0:00:02.9]} 60. Bf2 {[%clk 0:00:18.7]} 60... Rxf2+ {[%clk
0:00:02.6]} 61. Kxf2 {[%clk 0:00:19.6]} 61... Qd2+ {[%clk 0:00:02.6]} 62. Kg3
{[%clk 0:00:20.2]} 62... Qxa5 {[%clk 0:00:03]} 63. Rg4+ {[%clk 0:00:20.5]} 63...
Kf6 {[%clk 0:00:03]} 64. Be4+ {[%clk 0:00:21]} 64... Ke5 {[%clk 0:00:03.9]} 65.
Rf5+ {[%clk 0:00:21]} 65... Ke6 {[%clk 0:00:02.9]} 66. Rxa5 {[%clk 0:00:21.9]}
1-0

[Event "*** Titled Tuesday Blitz"]
[Site "Chess.com"]
[Date "2020.04.21"]
[Round "2"]
[White "Donseng"]
[Black "Bulldog167"]
[Result "0-1"]
[WhiteElo "2525"]
[BlackElo "2767"]
[TimeControl "180+1"]
[EndTime "10:19:05 PDT"]
[Termination "Bulldog167 won on time"]

1. e4 {[%clk 0:03:00.9]} 1... e6 {[%clk 0:02:59]} 2. d4 {[%clk 0:03:00.8]} 2...
d5 {[%clk 0:02:59.5]} 3. e5 {[%clk 0:03:01]} 3... c5 {[%clk 0:02:59.5]} 4. c3
{[%clk 0:03:01.4]} 4... Nc6 {[%clk 0:03:00.1]} 5. Nf3 {[%clk 0:03:01.8]} 5...
Bd7 {[%clk 0:03:00.5]} 6. Bd3 {[%clk 0:02:59.7]} 6... Nge7 {[%clk 0:03:00.1]} 7.
O-O {[%clk 0:02:57]} 7... Rc8 {[%clk 0:02:56.7]} 8. dxc5 {[%clk 0:02:49.4]} 8...
Ng6 {[%clk 0:02:56.2]} 9. Bxg6 {[%clk 0:02:46.1]} 9... hxg6 {[%clk 0:02:56.4]}
10. b4 {[%clk 0:02:46.4]} 10... f6 {[%clk 0:02:41.2]} 11. Re1 {[%clk 0:02:41.6]}
11... Kf7 {[%clk 0:02:38.7]} 12. Na3 {[%clk 0:02:26.8]} 12... a6 {[%clk
0:02:20]} 13. Nc2 {[%clk 0:02:26.5]} 13... g5 {[%clk 0:02:10.1]} 14. h3 {[%clk
0:02:26.4]} 14... Qc7 {[%clk 0:02:06]} 15. Bxg5 {[%clk 0:02:21.5]} 15... fxg5
{[%clk 0:02:05.6]} 16. Nxg5+ {[%clk 0:02:21.2]} 16... Kg8 {[%clk 0:02:04.6]} 17.
Qf3 {[%clk 0:02:15.2]} 17... Rh6 {[%clk 0:01:45.4]} 18. Qf7+ {[%clk 0:02:06.7]}
18... Kh8 {[%clk 0:01:45.4]} 19. Nd4 {[%clk 0:02:05.7]} 19... Nxd4 {[%clk
0:01:39.3]} 20. cxd4 {[%clk 0:02:05.4]} 20... Ba4 {[%clk 0:01:26.9]} 21. f4
{[%clk 0:01:56.6]} 21... Bc2 {[%clk 0:01:15.9]} 22. Rac1 {[%clk 0:01:55.7]}
22... Bf5 {[%clk 0:01:15.5]} 23. g4 {[%clk 0:01:55.1]} 23... Be4 {[%clk
0:01:12.2]} 24. Qxc7 {[%clk 0:01:47.3]} 24... Rxc7 {[%clk 0:01:12.3]} 25. Nxe4
{[%clk 0:01:47.4]} 25... dxe4 {[%clk 0:01:13.2]} 26. Kg2 {[%clk 0:01:48.3]}
26... Kg8 {[%clk 0:01:05]} 27. Rxe4 {[%clk 0:01:48.1]} 27... g6 {[%clk
0:01:03.9]} 28. Rf1 {[%clk 0:01:45.2]} 28... Rch7 {[%clk 0:01:00.2]} 29. Re3
{[%clk 0:01:43.6]} 29... Kf7 {[%clk 0:01:00.1]} 30. f5 {[%clk 0:01:43.2]} 30...
gxf5 {[%clk 0:00:58.6]} 31. gxf5 {[%clk 0:01:43.4]} 31... Be7 {[%clk 0:00:50.8]}
32. f6 {[%clk 0:01:38.6]} 32... Bf8 {[%clk 0:00:51.1]} 33. Rg3 {[%clk
0:01:29.1]} 33... Rh4 {[%clk 0:00:47.4]} 34. Rd1 {[%clk 0:01:25.4]} 34... Re4
{[%clk 0:00:47.2]} 35. Kf3 {[%clk 0:01:23.5]} 35... Rhh4 {[%clk 0:00:46.2]} 36.
Rg4 {[%clk 0:01:16.3]} 36... Rexg4 {[%clk 0:00:38.2]} 37. hxg4 {[%clk
0:01:17.2]} 37... Rh3+ {[%clk 0:00:35.9]} 38. Kf4 {[%clk 0:01:17.2]} 38... Bh6+
{[%clk 0:00:35.1]} 39. g5 {[%clk 0:01:17.1]} 39... Rh4+ {[%clk 0:00:35.5]} 40.
Kg3 {[%clk 0:01:06.4]} 40... Bxg5 {[%clk 0:00:35.9]} 41. a4 {[%clk 0:00:52.4]}
41... Re4 {[%clk 0:00:35.3]} 42. b5 {[%clk 0:00:47.3]} 42... axb5 {[%clk
0:00:35.7]} 43. axb5 {[%clk 0:00:47.4]} 43... Re3+ {[%clk 0:00:35.3]} 44. Kg4
{[%clk 0:00:47.2]} 44... Kg6 {[%clk 0:00:34.9]} 45. b6 {[%clk 0:00:37]} 45...
Rc3 {[%clk 0:00:34.3]} 46. d5 {[%clk 0:00:23.1]} 46... Rc4+ {[%clk 0:00:29.7]}
47. Kf3 {[%clk 0:00:22.6]} 47... exd5 {[%clk 0:00:29.7]} 48. Rxd5 {[%clk
0:00:22.5]} 48... Kf5 {[%clk 0:00:22.4]} 49. f7 {[%clk 0:00:21.9]} 49... Rf4+
{[%clk 0:00:22.6]} 50. Kg3 {[%clk 0:00:21.2]} 50... Ke6 {[%clk 0:00:23]} 51. c6
{[%clk 0:00:18.2]} 51... Rxf7 {[%clk 0:00:15.5]} 52. c7 {[%clk 0:00:07.6]} 52...
Rf8 {[%clk 0:00:15.6]} 53. Rc5 {[%clk 0:00:07.9]} 53... Rc8 {[%clk 0:00:12.8]}
54. Kg4 {[%clk 0:00:08.8]} 54... Be3 {[%clk 0:00:11.2]} 55. Rb5 {[%clk
0:00:08.6]} 55... Rf8 {[%clk 0:00:07.7]} 56. Rb3 {[%clk 0:00:07.5]} 56... Bd4
{[%clk 0:00:06.4]} 57. Rd3 {[%clk 0:00:06.4]} 57... Kxe5 {[%clk 0:00:06.1]} 58.
Kg5 {[%clk 0:00:05]} 58... Bxb6 {[%clk 0:00:04.6]} 59. Rd7 {[%clk 0:00:03.7]}
59... Rc8 {[%clk 0:00:04]} 60. Rd8 {[%clk 0:00:03.5]} 60... Rxd8 {[%clk
0:00:04]} 61. c8=Q {[%clk 0:00:03.7]} 61... Rxc8 {[%clk 0:00:04.1]} 0-1

[Event "*** Titled Tuesday Blitz"]
[Site "Chess.com"]
[Date "2020.04.21"]
[Round "2"]
[White "dalmatinac101"]
[Black "murtas73"]
[Result "1/2-1/2"]
[WhiteElo "2803"]
[BlackElo "2574"]
[TimeControl "180+1"]
[EndTime "10:19:07 PDT"]
[Termination "Game drawn - timeout vs insufficient material"]

1. e4 {[%clk 0:03:00.9]} 1... e6 {[%clk 0:02:59]} 2. d4 {[%clk 0:03:00.9]} 2...
d5 {[%clk 0:02:59.9]} 3. Nc3 {[%clk 0:03:01.8]} 3... Bb4 {[%clk 0:02:58.4]} 4.
e5 {[%clk 0:03:01.9]} 4... c5 {[%clk 0:02:57.6]} 5. a3 {[%clk 0:03:02.3]} 5...
Ba5 {[%clk 0:02:57.3]} 6. b4 {[%clk 0:03:00]} 6... cxd4 {[%clk 0:02:57.1]} 7.
Nb5 {[%clk 0:02:59]} 7... Bc7 {[%clk 0:02:56.5]} 8. f4 {[%clk 0:02:59.1]} 8...
Bd7 {[%clk 0:02:55.7]} 9. Nxc7+ {[%clk 0:02:58.7]} 9... Qxc7 {[%clk 0:02:55.2]}
10. Bb2 {[%clk 0:02:58.8]} 10... Ba4 {[%clk 0:02:52.8]} 11. Qxd4 {[%clk
0:02:51.8]} 11... Ne7 {[%clk 0:02:50.7]} 12. b5 {[%clk 0:02:42.1]} 12... Qxc2
{[%clk 0:02:45.3]} 13. Rc1 {[%clk 0:01:46.3]} 13... Qe4+ {[%clk 0:02:44.5]} 14.
Qxe4 {[%clk 0:01:46.4]} 14... dxe4 {[%clk 0:02:45.4]} 15. Nh3 {[%clk 0:01:29.9]}
15... O-O {[%clk 0:02:43.2]} 16. Ng5 {[%clk 0:01:28]} 16... a6 {[%clk
0:02:33.3]} 17. Rc7 {[%clk 0:01:14.3]} 17... Nd5 {[%clk 0:02:31]} 18. Rxb7
{[%clk 0:01:14.7]} 18... Bxb5 {[%clk 0:02:21.7]} 19. Bxb5 {[%clk 0:01:13.9]}
19... axb5 {[%clk 0:02:21.5]} 20. Nxe4 {[%clk 0:01:14.1]} 20... b4 {[%clk
0:02:15.3]} 21. axb4 {[%clk 0:01:03.7]} 21... Ra2 {[%clk 0:02:13.4]} 22. Bc1
{[%clk 0:00:56.6]} 22... Rxg2 {[%clk 0:02:07.4]} 23. Nf2 {[%clk 0:00:43.6]}
23... Nc6 {[%clk 0:02:00.7]} 24. Kf1 {[%clk 0:00:42]} 24... Rg6 {[%clk 0:01:58]}
25. b5 {[%clk 0:00:42.3]} 25... Na5 {[%clk 0:01:54.5]} 26. Ra7 {[%clk 0:00:39]}
26... Nc4 {[%clk 0:01:54.2]} 27. Ne4 {[%clk 0:00:27]} 27... h6 {[%clk
0:01:31.2]} 28. Rg1 {[%clk 0:00:24.8]} 28... Rxg1+ {[%clk 0:01:27.3]} 29. Kxg1
{[%clk 0:00:25.2]} 29... Rc8 {[%clk 0:01:25.4]} 30. Kf2 {[%clk 0:00:21.1]} 30...
Nxe5 {[%clk 0:01:21.8]} 31. fxe5 {[%clk 0:00:19]} 31... Rxc1 {[%clk 0:01:21.2]}
32. Nd6 {[%clk 0:00:19.9]} 32... f5 {[%clk 0:01:09.6]} 33. exf6 {[%clk
0:00:19.2]} 33... gxf6 {[%clk 0:01:09.3]} 34. h4 {[%clk 0:00:13.3]} 34... h5
{[%clk 0:01:07.9]} 35. Ra6 {[%clk 0:00:11.2]} 35... Rb1 {[%clk 0:01:04.3]} 36.
Ne4 {[%clk 0:00:10.2]} 36... Kf7 {[%clk 0:01:00.1]} 37. Nd6+ {[%clk 0:00:10.1]}
37... Kg6 {[%clk 0:00:59.5]} 38. Nc8 {[%clk 0:00:10.5]} 38... Rxb5 {[%clk
0:00:49.5]} 39. Rxe6 {[%clk 0:00:10.7]} 39... Kf5 {[%clk 0:00:48.4]} 40. Nd6+
{[%clk 0:00:08.1]} 40... Kxe6 {[%clk 0:00:48]} 41. Nxb5 {[%clk 0:00:09]} 41...
Ke5 {[%clk 0:00:47.5]} 42. Kf3 {[%clk 0:00:08.9]} 42... Ne7 {[%clk 0:00:43.6]}
43. Kg3 {[%clk 0:00:06.5]} 43... Nf5+ {[%clk 0:00:42.5]} 44. Kh3 {[%clk
0:00:07]} 44... Nd4 {[%clk 0:00:41]} 45. Nc3 {[%clk 0:00:07.4]} 45... f5 {[%clk
0:00:41]} 46. Kg3 {[%clk 0:00:06.5]} 46... f4+ {[%clk 0:00:41]} 47. Kf2 {[%clk
0:00:07]} 47... Nf5 {[%clk 0:00:39.8]} 48. Ne2 {[%clk 0:00:04.2]} 48... Nxh4
{[%clk 0:00:40.1]} 49. Ng1 {[%clk 0:00:05]} 49... Ke4 {[%clk 0:00:38.6]} 50. Nh3
{[%clk 0:00:05.5]} 50... Kf5 {[%clk 0:00:37.4]} 51. Ng1 {[%clk 0:00:05.8]} 51...
Ng6 {[%clk 0:00:37.2]} 52. Nf3 {[%clk 0:00:05.8]} 52... Ne5 {[%clk 0:00:36.6]}
53. Nd4+ {[%clk 0:00:06.4]} 53... Kg4 {[%clk 0:00:35.7]} 54. Ne6 {[%clk
0:00:06.7]} 54... h4 {[%clk 0:00:35.1]} 55. Kg2 {[%clk 0:00:06.3]} 55... h3+
{[%clk 0:00:33.9]} 56. Kh2 {[%clk 0:00:06.8]} 56... f3 {[%clk 0:00:29.8]} 57.
Kg1 {[%clk 0:00:06.5]} 57... Kg3 {[%clk 0:00:27.3]} 58. Ng5 {[%clk 0:00:05.9]}
58... Ng4 {[%clk 0:00:20]} 59. Ne4+ {[%clk 0:00:05.6]} 59... Kf4 {[%clk
0:00:19.5]} 60. Nd2 {[%clk 0:00:06.2]} 60... Ke3 {[%clk 0:00:17]} 61. Nf1+
{[%clk 0:00:06]} 61... Ke2 {[%clk 0:00:14.2]} 62. Ng3+ {[%clk 0:00:06.2]} 62...
Ke1 {[%clk 0:00:13]} 63. Kh1 {[%clk 0:00:06.4]} 1/2-1/2

[Event "*** Titled Tuesday Blitz"]
[Site "Chess.com"]
[Date "2020.04.21"]
[Round "2"]
[White "AlexTriapishko"]
[Black "amiralfio"]
[Result "1-0"]
[WhiteElo "2766"]
[BlackElo "2523"]
[TimeControl "180+1"]
[EndTime "10:19:10 PDT"]
[Termination "AlexTriapishko won on time"]

1. e4 {[%clk 0:02:58.6]} 1... e6 {[%clk 0:02:55.2]} 2. d4 {[%clk 0:02:54.5]}
2... d5 {[%clk 0:02:55.3]} 3. Nc3 {[%clk 0:02:55]} 3... Nf6 {[%clk 0:02:47.2]}
4. Bg5 {[%clk 0:02:54.9]} 4... dxe4 {[%clk 0:02:45.3]} 5. Nxe4 {[%clk
0:02:55.8]} 5... Be7 {[%clk 0:02:45.8]} 6. Bxf6 {[%clk 0:02:51.6]} 6... gxf6
{[%clk 0:02:46]} 7. Nf3 {[%clk 0:02:51.2]} 7... b6 {[%clk 0:02:43.7]} 8. Bb5+
{[%clk 0:02:48.5]} 8... c6 {[%clk 0:02:44]} 9. Bd3 {[%clk 0:02:47.9]} 9... Bb7
{[%clk 0:02:43.8]} 10. Qe2 {[%clk 0:02:43.4]} 10... Nd7 {[%clk 0:02:43.9]} 11.
O-O-O {[%clk 0:02:43.1]} 11... Qc7 {[%clk 0:02:44.1]} 12. Kb1 {[%clk 0:02:36.7]}
12... O-O-O {[%clk 0:02:44.2]} 13. Ba6 {[%clk 0:02:34.5]} 13... Rhg8 {[%clk
0:02:41.4]} 14. Bxb7+ {[%clk 0:02:32.9]} 14... Kxb7 {[%clk 0:02:42.3]} 15. g3
{[%clk 0:02:31.3]} 15... f5 {[%clk 0:02:37.4]} 16. Ned2 {[%clk 0:02:26.6]} 16...
Bf6 {[%clk 0:02:35.5]} 17. Nc4 {[%clk 0:02:25.3]} 17... Rg4 {[%clk 0:02:29.1]}
18. Rhe1 {[%clk 0:02:11.1]} 18... a6 {[%clk 0:02:08.9]} 19. Ne3 {[%clk
0:01:45.6]} 19... Rgg8 {[%clk 0:01:59]} 20. c4 {[%clk 0:01:45]} 20... c5 {[%clk
0:01:56]} 21. d5 {[%clk 0:01:39.8]} 21... Ne5 {[%clk 0:01:35.2]} 22. Ng2 {[%clk
0:01:25.9]} 22... Nxf3 {[%clk 0:00:44]} 23. Qxf3 {[%clk 0:01:26.8]} 23... Ka7
{[%clk 0:00:43.9]} 24. dxe6 {[%clk 0:01:14.7]} 24... fxe6 {[%clk 0:00:44.8]} 25.
Rxe6 {[%clk 0:01:12]} 25... Bd4 {[%clk 0:00:35.9]} 26. Qe2 {[%clk 0:01:06.9]}
26... Rd7 {[%clk 0:00:15.2]} 27. Nf4 {[%clk 0:01:06.4]} 27... Rgd8 {[%clk
0:00:14.5]} 28. Nd5 {[%clk 0:01:06.5]} 28... Qb7 {[%clk 0:00:08.3]} 29. Rxb6
{[%clk 0:01:03]} 29... Qa8 {[%clk 0:00:08.6]} 30. Qe6 {[%clk 0:00:57.7]} 30...
Qc8 {[%clk 0:00:06.6]} 31. Qc6 {[%clk 0:00:38.7]} 31... Qxc6 {[%clk 0:00:05]}
32. Rxc6 {[%clk 0:00:39.6]} 32... Re8 {[%clk 0:00:04.8]} 33. Rd2 {[%clk
0:00:37.7]} 33... Rb7 {[%clk 0:00:04.1]} 34. b3 {[%clk 0:00:34.6]} 34... Re1+
{[%clk 0:00:03.8]} 35. Kc2 {[%clk 0:00:35.1]} 35... Rf1 {[%clk 0:00:03]} 36. Rc7
{[%clk 0:00:29.3]} 36... Rxc7 {[%clk 0:00:02.1]} 37. Nxc7 {[%clk 0:00:30.2]}
37... Rxf2 {[%clk 0:00:02.6]} 38. Ne6 {[%clk 0:00:26.1]} 38... Rxd2+ {[%clk
0:00:02]} 39. Kxd2 {[%clk 0:00:27]} 39... Bg1 {[%clk 0:00:02.5]} 40. h3 {[%clk
0:00:21.3]} 40... Bh2 {[%clk 0:00:02.7]} 41. g4 {[%clk 0:00:18.4]} 41... fxg4
{[%clk 0:00:03.6]} 42. hxg4 {[%clk 0:00:19.3]} 42... Kb6 {[%clk 0:00:04.2]} 43.
Kd3 {[%clk 0:00:19.9]} 43... h6 {[%clk 0:00:03.9]} 44. Ke4 {[%clk 0:00:20.2]}
44... Bg3 {[%clk 0:00:03.2]} 45. Kd5 {[%clk 0:00:19.4]} 45... Bf2 {[%clk
0:00:02.7]} 46. Ng7 {[%clk 0:00:19.9]} 46... Be3 {[%clk 0:00:02.2]} 47. Nf5
{[%clk 0:00:20.3]} 47... Bd2 {[%clk 0:00:02.2]} 48. Nd6 {[%clk 0:00:19]} 48...
Be3 {[%clk 0:00:02.1]} 49. Nc8+ {[%clk 0:00:18.8]} 49... Kb7 {[%clk 0:00:01.9]}
50. Ne7 {[%clk 0:00:19.7]} 50... Kb6 {[%clk 0:00:02.1]} 51. Ke4 {[%clk
0:00:19.2]} 51... Bd2 {[%clk 0:00:02.5]} 52. Nd5+ {[%clk 0:00:18]} 52... Kc6
{[%clk 0:00:02.4]} 53. Kf5 {[%clk 0:00:18.9]} 53... Bg5 {[%clk 0:00:02.9]} 54.
Nc3 {[%clk 0:00:17.3]} 54... Bc1 {[%clk 0:00:03.8]} 55. Ne4 {[%clk 0:00:18.2]}
55... Be3 {[%clk 0:00:03.7]} 56. Kg6 {[%clk 0:00:18]} 56... Bf4 {[%clk
0:00:03.3]} 57. Nf6 {[%clk 0:00:16.7]} 57... Kd6 {[%clk 0:00:03.2]} 58. Ng8
{[%clk 0:00:16.6]} 58... Ke5 {[%clk 0:00:02.6]} 59. Nxh6 {[%clk 0:00:17]} 59...
Bc1 {[%clk 0:00:02.6]} 60. Nf5 {[%clk 0:00:15.9]} 60... Ke4 {[%clk 0:00:02.3]}
61. g5 {[%clk 0:00:15.8]} 61... Kd3 {[%clk 0:00:02.8]} 62. Kf6 {[%clk
0:00:12.2]} 62... Kc2 {[%clk 0:00:03]} 63. g6 {[%clk 0:00:12.6]} 63... Kb1
{[%clk 0:00:03.1]} 64. Ke6 {[%clk 0:00:08.4]} 64... Bb2 {[%clk 0:00:02.3]} 65.
Kd5 {[%clk 0:00:08.8]} 65... Kxa2 {[%clk 0:00:02.5]} 66. Kxc5 {[%clk 0:00:09]}
66... Kxb3 {[%clk 0:00:03]} 67. Nd4+ {[%clk 0:00:09.4]} 1-0